bitfinex/quotes_SOLUSD_20250207
["timestamp","ask_amount","ask_price","bid_price","bid_amount"]
[1738919729923,0.03,195.16,195.14,20.25098]
[1738919730124,0.03,195.16,195.14,21.01936017]
[1738919730949,7.7913,195.29,195.15,1.12549]
[1738919731252,0.0001,195.18,195.17,1.0]
[1738919731423,0.0001,195.18,195.17,0.37647]
[1738919731622,0.0001,195.18,195.17,0.25098]
[1738919731825,0.0001,195.18,195.17,5.37468]
[1738919732226,0.0001,195.18,195.17,5.89196379]
[1738919733052,0.0001,195.18,195.17,6.14294379]
[1738919733840,0.0001,195.18,195.17,5.89196379]
[1738919734432,0.0001,195.18,195.17,6.14294379]
[1738919734759,0.0001,195.18,195.17,5.1237]
[1738919734951,0.0001,195.18,195.17,20.0]
[1738919735169,0.0001,195.18,195.16,5.124]
[1738919735460,0.0001,195.18,195.13,5.1247]
[1738919735825,0.0001,195.18,195.16,20.0]
[1738919736050,0.0001,195.18,195.13,5.1247]
[1738919736447,0.0001,195.18,195.09,0.76851531]
[1738919736653,0.0001,195.18,195.08,5.1261]
[1738919736959,0.0001,195.18,195.11,20.0]
[1738919738133,0.0001,195.18,195.1,20.0]
[1738919738352,0.0001,195.18,195.11,20.76855752]
[1738919739058,0.0001,195.18,195.11,20.0]
[1738919739444,0.0001,195.18,195.12,5.125]
[1738919742258,0.0001,195.18,195.15,20.0]
[1738919743154,0.0001,195.18,195.11,20.0]
[1738919743353,0.0001,195.18,195.13,0.7685744]
[1738919743854,0.0001,195.18,195.13,20.7685744]
[1738919744560,0.0001,195.18,195.14,0.25098]
[1738919744859,0.0001,195.18,195.13,21.7685744]
[1738919744860,0.0001,195.18,195.15,0.76828236]
[1738919745163,0.0001,195.18,195.16,5.124]
[1738919745463,0.0001,195.18,195.17,1.01922633]
[1738919747257,0.0001,195.18,195.17,26.14292633]
[1738919747438,0.0001,195.18,195.17,26.20592633]
[1738919747639,0.0001,195.18,195.17,27.45964866]
[1738919747974,0.0001,195.18,195.17,26.20592633]
[1738919748452,0.0001,195.18,195.17,25.95494633]
[1738919748966,0.0001,195.18,195.17,25.1867]
[1738919749165,0.0001,195.18,195.17,5.1867]
[1738919749543,0.0001,195.18,195.17,25.1867]
[1738919749743,0.0001,195.18,195.17,5.1867]
[1738919750369,0.0001,195.18,195.17,20.063]
[1738919751271,0.0001,195.18,195.17,25.1867]
[1738919751562,0.0001,195.18,195.17,0.063]
[1738919754577,0.12559,195.18,195.17,0.063]
[1738919755376,17.63613853,195.18,195.17,0.063]
[1738919756659,13.41194853,195.18,195.17,0.063]
[1738919756845,17.51064853,195.18,195.17,0.063]
[1738919760361,13.41194853,195.18,195.17,0.063]
[1738919760580,17.63613853,195.18,195.17,0.063]
[1738919761197,13.41194853,195.18,195.17,0.063]
[1738919762173,0.0001,195.18,195.17,0.063]
[1738919765678,0.0001,195.18,195.17,20.063]
[1738919765994,0.0001,195.18,195.17,20.31398]
[1738919766485,0.0001,195.18,195.17,21.08220183]
[1738919767280,0.0001,195.18,195.17,26.20590183]
[1738919767580,0.0001,195.18,195.17,27.20590183]
[1738919768076,0.03,195.31,195.2,0.25098]
[1738919768275,13.44184853,195.31,195.21,0.76809356]
[1738919768662,0.03,195.31,195.21,1.76809356]
[1738919769275,0.03,195.31,195.25,20.0]
[1738919769470,0.03,195.31,195.26,0.76791494]
[1738919769866,0.03,195.31,195.25,20.0]
[1738919770377,0.03,195.31,195.26,0.76798017]
[1738919771488,0.03,195.31,195.3,20.0]
[1738919772480,0.03,195.31,195.27,5.1211]
[1738919772883,0.03,195.31,195.3,20.0]
[1738919773777,0.03,195.31,195.27,5.1211]
[1738919774189,0.03,195.31,195.3,20.0]
[1738919774591,0.03,195.31,195.3,25.1203]
[1738919776273,0.03,195.38,195.34,20.0]
[1738919776476,0.03,195.38,195.36,5.1187]
[1738919777395,1.0,195.49,195.36,5.1187]
[1738919777396,1.505e-05,195.6,195.51,2.0]
[1738919777573,22.68910536,195.63,195.55,1.0]
[1738919777890,112.59521075,195.66,195.59,20.0]
[1738919778066,112.59521075,195.66,195.6,0.76662123]
[1738919778268,51.41051075,195.66,195.65,1.0]
[1738919778498,144.76527097,195.79,195.66,1.0]
[1738919778678,144.76527097,195.79,195.66,1.76636876]
[1738919778888,144.76527097,195.79,195.67,20.37647]
[1738919779094,54.55975054,195.68,195.67,20.37647]
[1738919779286,65.19629391,195.71,195.69,20.0]
[1738919779485,93.9009873,195.74,195.7,20.25098]
[1738919779891,93.9009873,195.74,195.71,20.43472719]
[1738919780080,93.9009873,195.74,195.72,20.43470497]
[1738919780407,93.9009873,195.74,195.73,20.43468276]
[1738919780698,6.3108,195.84,195.73,20.43468276]
[1738919780699,0.12549,195.82,195.73,20.0]
[1738919780894,2.51381937,195.92,195.77,25.24812864]
[1738919781096,47.86159177,196.07,195.78,0.43457175]
[1738919781296,20.0,195.95,195.78,25.63945723]
[1738919781485,20.0,195.95,195.77,2.43454955]
[1738919781687,20.302,195.94,195.78,0.43457175]
[1738919781887,20.302,195.94,195.76,1.43454955]
[1738919781888,0.302,195.94,195.76,1.43454955]
[1738919782093,0.302,195.94,195.92,7.531e-05]
[1738919782286,20.302,195.94,195.79,34.44136213]
[1738919782606,20.0,195.86,195.79,34.44136213]
[1738919783117,0.12549,195.83,195.79,34.44136213]
[1738919783576,13.41184853,195.85,195.76,1.0]
[1738919783577,82.1,195.93,195.8,10.16946262]
[1738919783995,13.78831853,195.91,195.8,10.16946262]
[1738919784802,13.78831853,195.87,195.8,10.16946262]
[1738919785000,13.78831853,195.87,195.8,7.65867235]
[1738919785505,0.25098,195.91,195.8,7.65867235]
[1738919785682,20.0,195.9,195.8,7.65867235]
[1738919785885,20.0,195.9,195.79,7.65867235]
[1738919786080,61.61469829,195.93,195.79,7.65867235]
[1738919786396,61.61469829,195.93,195.81,1.0]
[1738919786596,1.26521213,195.95,195.85,1.0]
[1738919786801,2.538665,195.98,195.83,2.0]
[1738919787104,5.1028,195.97,195.82,21.0]
[1738919787308,5.1028,195.97,195.83,1.0]
[1738919787506,0.37647,195.93,195.83,1.0]
[1738919787710,0.12549,195.93,195.85,1.0]
[1738919788007,0.12549,195.93,195.84,2.0]
[1738919788204,0.37647,195.9,195.8,2.0]
[1738919788386,0.37647,195.9,195.81,1.0]
[1738919788816,17.8671,195.89,195.81,1.0]
[1738919789111,0.12549,195.88,195.79,8.6057]
[1738919789316,0.12549,195.88,195.81,1.0]
[1738919789610,17.8671,195.89,195.81,1.0]
[1738919789805,17.8671,195.89,195.83,1.0]
[1738919789986,17.8671,195.89,195.83,2.0]
[1738919790414,17.8671,195.89,195.84,1.0]
[1738919790617,5.1049,195.89,195.85,1.0]
[1738919790784,0.37647,195.94,195.85,2.0]
[1738919790989,14.2907,195.93,195.85,2.0]
[1738919791294,14.2907,195.93,195.86,1.0]
[1738919791694,14.2907,195.93,195.85,2.0]
[1738919791894,0.12549,195.92,195.82,2.0]
[1738919792214,0.37647,195.92,195.81,1.0]
[1738919792812,14.2922,195.91,195.82,1.0]
[1738919793117,14.2922,195.91,195.81,1.0]
[1738919793299,0.12549,195.9,195.82,1.0]
[1738919793705,0.37647,195.9,195.78,2.0]
[1738919793908,0.12549,195.88,195.77,1.0]
[1738919794718,0.12549,195.88,195.78,1.0]
[1738919795014,0.12549,195.86,195.77,1.0]
[1738919795212,0.12549,195.86,195.78,1.0]
[1738919795396,0.12549,195.86,195.77,1.0]
[1738919795596,0.12549,195.86,195.78,1.0]
[1738919795798,0.12549,195.86,195.78,2.0]
[1738919796106,0.12549,195.86,195.77,1.0]
[1738919796310,0.37647,195.86,195.76,1.0]
[1738919796920,10.2129,195.83,195.76,1.0]
[1738919797515,10.2129,195.83,195.77,1.0]
[1738919797723,10.2129,195.83,195.78,1.0]
[1738919797892,10.2129,195.83,195.77,1.0]
[1738919798817,14.42129,195.86,195.78,1.0]
[1738919799215,34.84399,195.86,195.77,1.0]
[1738919800422,14.2973,195.84,195.75,1.0]
[1738919800807,20.37647,195.83,195.75,1.0]
[1738919801117,0.37647,195.8,195.68,6.3267]
[1738919801326,0.37647,195.8,195.67,48.25896297]
[1738919801327,13.41184853,195.77,195.67,47.25896297]
[1738919801628,0.37647,195.76,195.67,47.25896297]
[1738919802396,0.37647,195.76,195.65,1.5745]
[1738919802609,0.12549,195.74,195.65,1.5745]
[1738919802810,0.37647,195.74,195.63,1.0]
[1738919803024,0.37647,195.74,195.64,1.0]
[1738919803224,0.37647,195.74,195.64,2.0]
[1738919803412,0.37647,195.74,195.62,6.3767]
[1738919804099,0.37647,195.74,195.63,1.0]
[1738919804429,0.12549,195.74,195.66,1.0]
[1738919804728,14.3053,195.73,195.66,1.0]
[1738919805113,14.3053,195.73,195.65,0.063]
[1738919805315,0.37647,195.72,195.65,0.063]
[1738919806242,0.37647,195.69,195.65,0.0001]
[1738919806603,0.12549,195.67,195.65,0.0001]
[1738919807020,4.0883,195.68,195.65,0.0001]
[1738919808631,0.12549,195.67,195.65,0.0001]
[1738919810303,4.0887,195.66,195.65,0.0001]
[1738919810717,4.46517,195.66,195.65,0.0001]
[1738919811117,17.87701853,195.66,195.65,0.0001]
[1738919812704,4.46517,195.66,195.65,0.0001]
[1738919812905,24.46517,195.66,195.65,0.0001]
[1738919814433,0.37647,195.65,195.52,1.0]
[1738919814628,0.12549,195.63,195.51,7.3453]
[1738919814829,0.12549,195.63,195.52,1.0]
[1738919815133,33.0327,195.66,195.51,6.3453]
[1738919815134,0.37647,195.61,195.51,6.3453]
[1738919816043,0.12549,195.59,195.49,1.5916]
[1738919816214,0.37647,195.59,195.49,1.5916]
[1738919816417,0.12549,195.56,195.46,7.1407]
[1738919816620,0.12549,195.56,195.46,6.1407]
[1738919816946,12.5267,195.58,195.5,1.0]
[1738919817324,12.5267,195.58,195.46,6.1407]
[1738919817325,12.5267,195.58,195.52,2.0]
[1738919817643,12.5267,195.58,195.5,2.0]
[1738919817814,12.5267,195.58,195.51,1.0]
[1738919818013,12.5267,195.58,195.53,1.0]
[1738919818327,12.5267,195.58,195.53,2.0]
[1738919818508,8.9477,195.58,195.53,1.0]
[1738919818811,8.9477,195.58,195.49,20.0]
[1738919818812,8.9477,195.58,195.5,1.0]
[1738919819013,8.9477,195.58,195.49,2.0]
[1738919819215,8.9477,195.58,195.48,1.0]
[1738919819428,8.9477,195.58,195.49,1.0]
[1738919819833,0.12549,195.57,195.47,2.0]
[1738919820138,0.37647,195.57,195.46,8.1407]
[1738919820341,0.37647,195.57,195.46,7.1407]
[1738919820543,0.12549,195.54,195.46,6.1407]
[1738919821341,30.4253,195.56,195.47,2.0]
[1738919822122,3.5794,195.56,195.52,1.0]
[1738919822326,3.5794,195.56,195.51,1.0]
[1738919822834,0.12549,195.58,195.49,1.0]
[1738919823238,0.12549,195.58,195.5,1.0]
[1738919823443,12.5242,195.62,195.54,2.0]
[1738919823768,12.5242,195.62,195.54,1.0]
[1738919824131,12.5242,195.62,195.55,2.0]
[1738919824320,12.5242,195.62,195.57,1.0]
[1738919824634,12.5242,195.62,195.56,1.0]
[1738919825034,12.5223,195.65,195.59,1.0]
[1738919825238,3.5778,195.65,195.62,1.0]
[1738919825447,3.5772,195.68,195.63,2.0]
[1738919825759,3.5772,195.68,195.63,1.0]
[1738919825935,3.5772,195.68,195.62,2.0]
[1738919826442,0.03,195.69,195.62,1.0]
[1738919826643,0.03,195.69,195.63,2.0]
[1738919826844,0.03,195.69,195.66,1.0]
[1738919827358,0.03,195.69,195.65,1.0]
[1738919828051,0.03,195.69,195.66,1.0]
[1738919828558,0.03,195.69,195.65,1.0]
[1738919828738,0.03,195.69,195.62,2.0]
[1738919828941,0.03,195.69,195.64,1.0]
[1738919829459,0.03,195.69,195.66,2.0]
[1738919829847,0.03,195.69,195.61,25.1121]
[1738919829848,0.03,195.69,195.68,2.0]
[1738919832861,0.03,195.69,195.68,8.079]
[1738919833248,0.03,195.69,195.67,1.0]
[1738919833665,0.03,195.69,195.68,2.0]
[1738919836762,0.03,195.69,195.68,1.0]
[1738919836968,0.03,195.69,195.67,2.0]
[1738919837266,0.03,195.69,195.68,1.0]
[1738919837459,0.03,195.69,195.68,2.0]
[1738919838775,0.03,195.69,195.68,1.0]
[1738919838961,0.03,195.69,195.66,1.0]
[1738919839264,0.03,195.69,195.68,1.0]
[1738919839443,0.03,195.69,195.66,1.0]
[1738919840370,0.03,195.69,195.65,0.063]
[1738919841647,0.03,195.69,195.65,0.0001]
[1738919842563,0.40647,195.69,195.65,0.0001]
[1738919842763,3.5772,195.68,195.65,0.0001]
[1738919843570,0.37647,195.67,195.65,0.0001]
[1738919845071,3.5776,195.66,195.65,0.0001]
[1738919846849,0.03,195.69,195.65,0.0001]
[1738919847044,0.03,195.69,195.65,1.0001]
[1738919847360,0.03,195.69,195.65,0.0001]
[1738919847572,0.03,195.69,195.65,1.0001]
[1738919847773,0.03,195.89,195.79,1.0]
[1738919848078,0.03,195.89,195.78,2.0]
[1738919848586,3.5744,195.84,195.76,2.0]
[1738919848885,12.5089,195.86,195.77,1.0]
[1738919849184,12.5089,195.86,195.76,2.0]
[1738919849367,13.78831853,195.84,195.73,2.0]
[1738919849570,13.78831853,195.84,195.73,1.0]
[1738919849877,0.37647,195.84,195.74,1.0]
[1738919850061,0.03,195.85,195.76,1.0]
[1738919850267,0.03,195.85,195.78,2.0]
[1738919850764,0.03,195.85,195.78,1.0]
[1738919851171,13.81831853,195.85,195.74,1.0]
[1738919851366,13.81831853,195.85,195.75,1.0]
[1738919851571,13.81831853,195.85,195.73,1.0]
[1738919851774,13.81831853,195.85,195.74,1.0]
[1738919851966,0.37647,195.83,195.71,2.0]
[1738919852182,0.03,195.85,195.76,1.0]
[1738919852365,0.03,195.85,195.77,1.0]
[1738919852766,0.03,195.85,195.77,2.0]
[1738919853178,0.03,195.85,195.78,1.0]
[1738919853591,0.03,195.85,195.76,1.0]
[1738919853962,0.40647,195.85,195.74,2.0]
[1738919854161,0.40647,195.85,195.74,1.0]
[1738919854381,0.40647,195.85,195.75,1.0]
[1738919854783,0.40647,195.85,195.77,2.0]
[1738919854961,0.40647,195.85,195.76,1.0]
[1738919855164,0.40647,195.85,195.77,1.0]
[1738919855165,12.5101,195.84,195.77,1.0]
[1738919855696,12.5101,195.84,195.79,1.0]
[1738919855870,0.37647,195.83,195.74,1.0]
[1738919856069,0.37647,195.83,195.75,1.0]
[1738919856367,0.37647,195.83,195.72,2.0]
[1738919856583,0.37647,195.83,195.72,1.0]
[1738919856788,0.37647,195.83,195.74,1.0]
[1738919857089,0.37647,195.81,195.72,2.0]
[1738919857262,0.37647,195.81,195.75,1.0]
[1738919857590,0.37647,195.81,195.74,1.0]
[1738919858280,12.5114,195.82,195.76,2.0]
[1738919858468,12.5114,195.82,195.78,1.0]
[1738919859182,3.5743,195.84,195.79,1.0]
[1738919859482,3.5743,195.84,195.81,1.0]
[1738919861395,0.03,195.85,195.79,6.1563]
[1738919861687,0.03,195.85,195.8,1.0]
[1738919861863,0.40647,195.85,195.79,6.1563]
[1738919863196,12.5101,195.84,195.79,6.1563]
[1738919865480,0.37647,195.83,195.79,6.1563]
[1738919865679,0.37647,195.83,195.75,6.6238]
[1738919867164,12.5114,195.82,195.75,6.6238]
[1738919867694,0.37647,195.81,195.75,6.6238]
[1738919867996,0.37647,195.81,195.74,1.0]
[1738919869191,12.5126,195.8,195.75,1.0]
[1738919869490,12.5126,195.8,195.73,2.0]
[1738919869678,12.5126,195.8,195.74,1.0]
[1738919870187,12.5126,195.8,195.73,1.0]
[1738919872473,12.5126,195.8,195.74,1.0]
[1738919872772,12.5126,195.8,195.71,1.0]
[1738919872773,12.5126,195.8,195.75,1.0]
[1738919874195,3.575,195.8,195.76,1.0]
[1738919875894,0.03,195.85,195.79,1.0]
[1738919876098,0.03,195.85,195.81,1.0]
[1738919876499,0.03,195.83,195.82,1.0]
[1738919877496,0.03,195.83,195.82,2.0]
[1738919877694,0.03,195.83,195.82,1.0]
[1738919879167,0.03,195.83,195.82,2.0]
[1738919879386,0.03,195.83,195.82,1.0]
[1738919879572,0.03,195.83,195.81,1.0]
[1738919881799,0.03,195.83,195.81,2.0]
[1738919882877,0.03,195.83,195.82,2.0]
[1738919883079,0.03,195.83,195.82,1.0]
[1738919883707,0.03,195.83,195.81,2.0]
[1738919884206,0.03,195.83,195.8,2.0]
[1738919884503,0.03,195.83,195.78,1.0]
[1738919884683,0.03,195.83,195.77,1.6598]
[1738919884885,0.03,195.83,195.75,1.0]
[1738919885081,0.03,195.83,195.76,1.0]
[1738919885286,0.03,195.83,195.75,1.0]
[1738919885480,0.03,195.83,195.76,1.0]
[1738919885695,0.03,195.83,195.75,1.0]
[1738919886020,0.40647,195.83,195.76,1.0]
[1738919886179,0.03,195.83,195.76,2.0]
[1738919886383,0.03,195.83,195.77,1.0]
[1738919887023,0.03,195.83,195.75,2.0]
[1738919888112,12.5114,195.82,195.75,1.0]
[1738919888907,12.5114,195.82,195.76,1.0]
[1738919889202,12.5114,195.82,195.77,1.0]
[1738919889404,12.5114,195.82,195.76,1.0]
[1738919890321,8.9367,195.82,195.76,2.0]
[1738919890497,8.9367,195.82,195.79,1.0]
[1738919890997,0.03,195.83,195.8,1.0]
[1738919891191,0.03,195.83,195.78,1.0]
[1738919891192,0.03,195.83,195.81,1.0]
[1738919891805,0.03,195.83,195.82,1.0]
[1738919892107,0.03,195.83,195.82,2.0]
[1738919892409,0.03,195.83,195.8,2.0]
[1738919892814,0.03,195.83,195.8,1.0]
[1738919893401,0.03,195.83,195.79,1.0]
[1738919893698,0.03,195.83,195.78,2.0]
[1738919893897,0.03,195.83,195.78,1.0]
[1738919894408,0.03,195.83,195.78,2.0]
[1738919896339,0.03,195.83,195.82,2.0]
[1738919896489,0.03,195.83,195.82,1.0]
[1738919896688,0.03,195.83,195.81,2.0]
[1738919897200,0.03,195.83,195.82,2.0]
[1738919902926,0.03,195.83,195.81,3.572]
[1738919903233,0.03,195.83,195.8,2.0]
[1738919903411,0.03,195.83,195.8,1.0]
[1738919903603,0.03,195.83,195.8,2.0]
[1738919903803,0.03,195.83,195.8,1.0]
[1738919904324,0.03,195.83,195.8,2.0]
[1738919904924,0.03,195.83,195.81,1.0]
[1738919905316,0.03,195.83,195.82,2.0]
[1738919907003,0.03,195.83,195.82,7.1067]
[1738919907198,0.03,195.83,195.82,13.3399]
[1738919907602,0.03,195.83,195.82,14.8472]
[1738919908428,0.03,195.85,195.84,35.41184853]
[1738919908634,8.01148657,195.92,195.91,9.7405]
[1738919910345,53.99412863,196.02,195.91,9.7405]
[1738919910346,8.01148657,195.99,195.95,1.0]
[1738919910513,11.58308657,195.99,195.92,2.0]
[1738919910710,20.51208657,195.99,195.92,2.0]
[1738919910945,20.51208657,195.99,195.93,1.0]
[1738919911111,20.51208657,195.99,195.92,1.0]
[1738919911432,0.37647,195.98,195.9,2.0]
[1738919911611,0.37647,195.98,195.89,2.0]
[1738919912216,0.37647,195.98,195.86,7.7298]
[1738919912217,13.41184853,195.97,195.88,2.0]
[1738919912414,0.37647,195.95,195.89,1.0]
[1738919912608,0.37647,195.95,195.87,1.0]
[1738919912929,0.37647,195.93,195.84,1.0]
[1738919913249,14.2885,195.96,195.81,6.3739]
[1738919913250,0.37647,195.91,195.81,6.3739]
[1738919913417,13.41184853,195.9,195.81,1.0]
[1738919913611,0.37647,195.89,195.8,1.0]
[1738919913938,0.37647,195.84,195.76,1.0]
[1738919914312,0.37647,195.84,195.74,2.0]
[1738919914515,14.298,195.83,195.74,2.0]
[1738919914832,14.298,195.83,195.71,7.9804]
[1738919914833,10.211,195.87,195.8,2.0]
[1738919915031,4.0848,195.85,195.81,2.0]
[1738919915552,4.0848,195.85,195.81,1.0]
[1738919915715,4.0848,195.85,195.8,1.0]
[1738919915914,10.211,195.87,195.81,1.0]
[1738919916115,10.211,195.87,195.8,1.0]
[1738919916337,10.211,195.87,195.81,1.0]
[1738919916537,10.211,195.87,195.8,1.0]
[1738919916844,10.211,195.87,195.79,2.0]
[1738919917146,10.211,195.87,195.81,1.0]
[1738919917842,10.211,195.87,195.81,2.0]
[1738919918214,10.211,195.87,195.8,1.0]
[1738919918443,10.211,195.87,195.81,2.0]
[1738919918743,4.0841,195.88,195.84,1.0]
[1738919918946,4.0841,195.88,195.85,1.0]
[1738919919114,14.2894,195.95,195.86,2.0]
[1738919919319,14.2894,195.95,195.89,1.0]
[1738919920242,14.2894,195.95,195.9,1.0]
[1738919920543,4.0826,195.95,195.9,2.0]
[1738919920913,4.0826,195.95,195.91,1.0]
[1738919921116,0.37647,195.94,195.87,1.0]
[1738919921315,0.37647,195.94,195.86,1.0]
[1738919921916,13.41184853,195.93,195.85,1.0]
[1738919922133,13.41184853,195.93,195.84,1.0]
[1738919922336,0.37647,195.92,195.84,1.0]
[1738919922539,0.37647,195.92,195.85,1.0]
[1738919922721,14.2922,195.91,195.86,1.0]
[1738919922926,20.4133,195.95,195.9,1.0]
[1738919922927,10.207,195.95,195.9,1.0]
[1738919923132,4.0828,195.94,195.89,1.0]
[1738919923329,0.37647,195.93,195.87,1.0]
[1738919923541,0.37647,195.93,195.86,2.0]
[1738919923721,0.37647,195.93,195.86,1.0]
[1738919923923,14.29,195.94,195.89,1.0]
[1738919924436,14.29,195.94,195.88,2.0]
[1738919924628,10.2072,195.94,195.88,2.0]
[1738919924828,10.2072,195.94,195.89,1.0]
[1738919925028,10.2072,195.94,195.88,1.0]
[1738919925248,10.2072,195.94,195.88,2.0]
[1738919925447,10.2072,195.94,195.91,1.0]
[1738919925652,0.37647,195.93,195.87,1.0]
[1738919925859,0.37647,195.93,195.86,1.0]
[1738919926023,0.37647,195.93,195.85,1.0]
[1738919926221,0.37647,195.93,195.86,1.0]
[1738919926528,13.78831853,195.93,195.85,1.0]
[1738919926723,0.37647,195.91,195.87,1.0]
[1738919926950,14.2914,195.92,195.87,1.0]
[1738919927130,14.2914,195.92,195.88,1.0]
[1738919927328,14.2914,195.92,195.87,1.0]
[1738919927842,0.37647,195.91,195.84,1.0]
[1738919928136,0.37647,195.91,195.85,1.0]
[1738919928330,0.37647,195.91,195.84,1.0]
[1738919928527,0.37647,195.91,195.85,1.0]
[1738919928731,14.2929,195.9,195.84,1.0]
[1738919929147,14.2929,195.9,195.85,1.0]
[1738919929346,14.2929,195.9,195.84,1.0]
[1738919930034,14.2929,195.9,195.85,1.0]
[1738919930243,14.2929,195.9,195.84,2.0]
[1738919930556,14.2929,195.9,195.84,1.0]
[1738919930938,0.37647,195.89,195.84,1.0]
[1738919931762,14.2929,195.9,195.84,2.0]
[1738919931950,14.2929,195.9,195.85,1.0]
[1738919932264,10.2092,195.9,195.85,1.0]
[1738919932461,10.2092,195.9,195.84,2.0]
[1738919932765,0.37647,195.89,195.82,1.0]
[1738919932932,0.37647,195.89,195.8,1.0]
[1738919933261,13.41184853,195.86,195.79,1.0]
[1738919933668,13.41184853,195.84,195.79,1.0]
[1738919933840,20.0,195.87,195.79,1.0]
[1738919934033,13.78831853,195.86,195.79,1.0]
[1738919934265,28.08411853,195.86,195.79,1.0]
[1738919934928,48.50681853,195.86,195.79,1.0]
[1738919936835,14.67227,195.86,195.81,1.0]
[1738919937146,4.0845,195.86,195.83,1.0]
[1738919937349,8.01148657,195.9,195.85,2.0]
[1738919937554,4.0839,195.89,195.86,1.0]
[1738919937854,4.0839,195.89,195.88,1.0]
[1738919938054,4.0837,195.9,195.89,1.0]
[1738919938659,4.0837,195.9,195.85,1.0]
[1738919938865,4.20899,195.91,195.85,2.0]
[1738919939066,4.20899,195.91,195.86,1.0]
[1738919939234,14.2922,195.91,195.85,1.0]
[1738919939434,14.2922,195.91,195.82,1.5925]
[1738919939435,0.37647,195.9,195.83,1.0]
[1738919940666,0.37647,195.9,195.81,6.5943]
[1738919940667,0.37647,195.88,195.81,1.0]
[1738919940835,13.41184853,195.87,195.8,1.0]
[1738919941030,0.37647,195.86,195.79,1.0]
[1738919941947,13.41184853,195.85,195.79,1.0]
[1738919942669,6.0426,195.88,195.79,1.0]
[1738919942970,12.5081,195.87,195.83,1.0]
[1738919943169,12.5081,195.87,195.82,1.0]
[1738919943351,12.5081,195.87,195.8,2.0]
[1738919943552,12.5081,195.87,195.8,1.0]
[1738919943770,0.37647,195.86,195.8,1.0]
[1738919944071,13.41184853,195.83,195.76,1.0]
[1738919944272,0.37647,195.82,195.75,1.0]
[1738919944437,0.37647,195.82,195.74,1.0]
[1738919944639,13.41184853,195.79,195.71,1.0]
[1738919944878,0.37647,195.77,195.71,1.0]
[1738919947366,0.37647,195.74,195.71,1.0]
[1738919949074,12.5158,195.75,195.73,1.0]
[1738919949075,3.5759,195.75,195.73,1.0]
[1738919949254,0.37647,195.78,195.75,1.0]
[1738919949470,0.37647,195.78,195.74,1.0]
[1738919949672,13.41184853,195.77,195.72,1.0]
[1738919950344,13.41184853,195.77,195.73,1.0]
[1738919950552,13.41184853,195.77,195.72,1.0]
[1738919952170,0.37647,195.75,195.72,1.0]
[1738919953481,0.37647,195.75,195.7,1.0]
[1738919953482,0.37647,195.73,195.7,1.0]